fUSD/lending_fUSD_20250526
["ID","MTS","AMOUNT","RATE_DAILY","PERIOD"]
[362397985,1748251842856,-420.0,0.00019998,2]
[362397986,1748251842865,-161.289869,0.00019998,2]
[362397987,1748251842874,-420.0,0.00019998,2]
[362397988,1748251842884,-420.0,0.00019998,2]
[362397989,1748251842894,-420.0,0.00019998,2]
[362397990,1748251842903,-425.54744336,0.00019998,2]
[362397991,1748251842913,-433.79502405,0.00019998,2]
[362397992,1748251842923,-420.0,0.00019998,2]
[362397993,1748251842933,-420.0,0.00019998,2]
[362397994,1748251842943,-420.0,0.00019998,2]
[362397995,1748251842954,-426.32180072,0.00019998,2]
[362397996,1748251842963,-420.0,0.00019998,2]
[362397997,1748251842973,-430.89,0.00019998,2]
[362397998,1748251842982,-465.43347024,0.00019998,2]
[362397999,1748251842992,-420.0,0.00019998,2]
[362398000,1748251843002,-350.96131177,0.00019998,2]
[362398001,1748251843011,-511.35923053,0.00019998,2]
[362398002,1748251843021,-420.0,0.00019998,2]
[362398003,1748251843031,-256.65809976,0.00019998,2]
[362398004,1748251843041,-432.31394962,0.00019998,2]
[362398005,1748251843051,-420.0,0.00019998,2]
[362398006,1748251843062,-420.0,0.00019998,2]
[362398007,1748251843073,-536.27091512,0.00019998,2]
[362398009,1748251843083,-420.0,0.00019998,2]
[362398011,1748251843093,-420.0,0.00019998,2]
[362398013,1748251843102,-420.0,0.00019998,2]
[362398014,1748251843112,-420.0,0.00019998,2]
[362398015,1748251843121,-375.75647702,0.00019998,2]
[362398016,1748251843131,-423.1436431,0.00019998,2]
[362398017,1748251843141,-420.0,0.00019998,2]
[362398018,1748251843150,-420.0,0.00019998,2]
[362398020,1748251843160,-421.28149432,0.00019998,2]
[362398021,1748251843170,-422.89236233,0.00019998,2]
[362398022,1748251843179,-422.85553343,0.00019998,2]
[362398023,1748251843189,-420.0,0.00019998,2]
[362398024,1748251843198,-420.0,0.00019998,2]
[362398025,1748251843208,-287.95223254,0.00019998,2]
[362398026,1748251843217,-420.0,0.00019998,2]
[362398028,1748251843227,-420.0,0.00019998,2]
[362398030,1748251843236,-420.0,0.00019998,2]
[362398031,1748251843246,-420.0,0.00019998,2]
[362398032,1748251843258,-420.0,0.00019998,2]
[362398033,1748251843268,-420.0,0.00019998,2]
[362398034,1748251843278,-420.0,0.00019998,2]
[362398035,1748251843288,-420.0,0.00019998,2]
[362398036,1748251843298,-169.18,0.00019998,2]
[362398037,1748251843307,-420.0,0.00019998,2]
[362398038,1748251843317,-480.12,0.00019998,2]
[362398039,1748251843326,-422.7936417,0.00019998,2]
[362398040,1748251843336,-420.0,0.00019998,2]
[362398041,1748251843345,-420.0,0.00019998,2]
[362398042,1748251843355,-420.0,0.00019998,2]
[362398043,1748251843364,-3021.39,0.00019998,2]
[362398044,1748251843374,-420.0,0.00019998,2]
[362398045,1748251843384,-500.61,0.00019998,2]
[362398046,1748251843394,-422.01824899,0.00019998,2]
[362398047,1748251843403,-420.0,0.00019998,2]
[362398048,1748251843413,-421.51458527,0.00019998,2]
[362398049,1748251843423,-420.0,0.00019998,2]
[362398050,1748251843433,-420.0,0.00019998,2]
[362398051,1748251843442,-420.0,0.00019998,2]
[362398052,1748251843452,-420.0,0.00019998,2]
[362398053,1748251843462,-420.0,0.00019998,2]
[362398054,1748251843471,-420.0,0.00019998,2]
[362398055,1748251843482,-420.0,0.00019998,2]
[362398056,1748251843491,-420.0,0.00019998,2]
[362398057,1748251843502,-420.0,0.00019998,2]
[362398058,1748251843512,-554.53,0.00019998,2]
[362398059,1748251843521,-420.0,0.00019998,2]
[362398060,1748251843531,-422.01333638,0.00019998,2]
[362398061,1748251843540,-420.0,0.00019998,2]
[362398062,1748251843550,-420.0,0.00019998,2]
[362398063,1748251843559,-420.0,0.00019998,2]
[362398064,1748251843570,-420.0,0.00019998,2]
[362398065,1748251843579,-245.9,0.00019998,2]
[362398066,1748251843589,-420.0,0.00019998,2]
[362398067,1748251843600,-420.0,0.00019998,2]
[362398068,1748251843612,-423.422464,0.00019998,2]
[362398069,1748251843622,-420.0,0.00019998,2]
[362398070,1748251843632,-420.0,0.00019998,2]
[362398071,1748251843642,-420.0,0.00019998,2]
[362398072,1748251843652,-420.0,0.00019998,2]
[362398073,1748251843664,-258.31734084,0.00019998,2]
[362398074,1748251843676,-155.316171,0.00019998,2]
[362398075,1748251843686,-381.73084618,0.00019998,2]
[362398076,1748251843695,-420.0,0.00019998,2]
[362398077,1748251843706,-420.0,0.00019998,2]
[362398078,1748251843716,-430.9,0.00019998,2]
[362398079,1748251843726,-420.0,0.00019998,2]
[362398080,1748251843735,-12500.0,0.00019999,2]
[362398081,1748251843745,-523.40468346,0.00019999,2]
[362398082,1748251843758,-169.63388042,0.00019999,2]
[362398083,1748251843767,-420.0,0.00019999,2]
[362398084,1748251843777,-186.379404,0.00019999,2]
[362398085,1748251843787,-243.10816892,0.00019999,2]
[362398086,1748251843797,-359.17792755,0.00019999,2]
[362398087,1748251843807,-420.0,0.00019999,2]
[362398088,1748251843816,-500.61657444,0.00019999,2]
[362398089,1748251843826,-421.41208181,0.00019999,2]
[362398091,1748251843835,-217.95,0.00019999,2]
[362398093,1748251843844,-213.28679159,0.00019999,2]
[362398095,1748251843853,-506.44471685,0.00019999,2]
[362398097,1748251843863,-380.23286455,0.00019999,2]
[362398098,1748251843872,-166.96605578,0.00019999,2]
[362398099,1748251843882,-398.70745429,0.00019999,2]
[362398100,1748251843892,-420.0,0.00019999,2]
[362398101,1748251843903,-421.92387445,0.00019999,2]
[362398103,1748251843913,-420.0,0.00019999,2]
[362398105,1748251843923,-420.0,0.00019999,2]
[362398107,1748251843934,-420.0,0.00019999,2]
[362398108,1748251843943,-474.39372691,0.00019999,2]
[362398109,1748251843953,-421.90218316,0.00019999,2]
[362398110,1748251843963,-508.67632674,0.00019999,2]
[362398111,1748251843973,-290.48532036,0.00019999,2]
[362398112,1748251843983,-238.1217392,0.00019999,2]
[362398113,1748251843992,-312.96761875,0.00019999,2]
[362398114,1748251844003,-386.6818491,0.00019999,2]
[362398115,1748251844013,-420.0,0.00019999,2]
[362398116,1748251844022,-556.25,0.00019999,2]
[362398117,1748251844032,-481.89,0.00019999,2]
[362398118,1748251844042,-420.0,0.00019999,2]
[362398119,1748251844051,-455.78,0.00019999,2]
[362398120,1748251844062,-470.4,0.00019999,2]
[362398121,1748251844071,-420.96039606,0.00019999,2]
[362398122,1748251844081,-306.75,0.00019999,2]
[362398123,1748251844091,-420.0,0.00019999,2]
[362398125,1748251844100,-422.18443629,0.00019999,2]
[362398127,1748251844109,-420.74282209,0.00019999,2]
[362398129,1748251844119,-426.59913828,0.00019999,2]
[362398131,1748251844128,-514.14744913,0.00019999,2]
[362398132,1748251844138,-249.1802986,0.00019999,2]
[362398133,1748251844147,-420.0,0.00019999,2]
[362398134,1748251844157,-341.54053376,0.00019999,2]
[362398135,1748251844166,-420.0,0.00019999,2]
[362398136,1748251844176,-420.0,0.00019999,2]
[362398137,1748251844186,-420.0,0.00019999,2]
[362398138,1748251844196,-420.0,0.00019999,2]
[362398139,1748251844207,-420.0,0.00019999,2]
[362398140,1748251844217,-253.36,0.00019999,2]
[362398141,1748251844227,-425.1624161,0.00019999,2]
[362398142,1748251844237,-426.17932787,0.00019999,2]
[362398143,1748251844246,-323.15349097,0.00019999,2]
[362398144,1748251844257,-421.80979155,0.00019999,2]
[362398145,1748251844266,-423.09849702,0.00019999,2]
[362398146,1748251844275,-421.15949606,0.00019999,2]
[362398147,1748251844285,-420.0,0.00019999,2]
[362398148,1748251844295,-423.77057086,0.00019999,2]
[362398149,1748251844304,-426.03554268,0.00019999,2]
[362398150,1748251844313,-420.0,0.00019999,2]
[362398151,1748251844323,-533.32964097,0.00019999,2]
[362398152,1748251844332,-427.2792551,0.00019999,2]
[362398153,1748251844341,-481.3,0.00019999,2]
[362398154,1748251844351,-434.48196232,0.00019999,2]
[362398155,1748251844360,-400.83902893,0.00019999,2]
[362398156,1748251844370,-429.71054354,0.00019999,2]
[362398157,1748251844380,-150.15413755,0.00019999,2]
[362398158,1748251844389,-420.0,0.00019999,2]
[362398159,1748251844399,-501.12,0.00019999,2]
[362398160,1748251844408,-420.0,0.00019999,2]
[362398161,1748251844418,-568.05905248,0.00019999,2]
[362398162,1748251844427,-420.0,0.00019999,2]
[362398163,1748251844437,-181.62244686,0.00019999,2]
[362398164,1748251844446,-422.43535734,0.00019999,2]
[362398165,1748251844455,-425.33111869,0.00019999,2]
[362398166,1748251844465,-420.0,0.00019999,2]
[362398167,1748251844474,-152.45,0.00019999,2]
[362398168,1748251844484,-463.89,0.00019999,2]
[362398169,1748251844494,-420.0,0.00019999,2]
[362398170,1748251844505,-179.23,0.00019999,2]
[362398171,1748251844514,-420.0,0.00019999,2]
[362398172,1748251844524,-355.13828218,0.00019999,2]
[362398173,1748251844534,-420.0,0.00019999,2]
[362398174,1748251844543,-420.0,0.00019999,2]
[362398175,1748251844553,-261.4,0.00019999,2]
[362398176,1748251844562,-420.0,0.00019999,2]
[362398177,1748251844571,-420.0,0.00019999,2]
[362398178,1748251844582,-420.0,0.00019999,2]
[362398179,1748251844591,-420.0,0.00019999,2]
[362398180,1748251844600,-284.26388187,0.00019999,2]
[362398181,1748251844609,-420.0,0.00019999,2]
[362398182,1748251844619,-420.0,0.00019999,2]
[362398183,1748251844628,-420.0,0.00019999,2]
[362398184,1748251844638,-420.0,0.00019999,2]
[362398185,1748251844648,-490.46527694,0.00019999,2]
[362398186,1748251844661,-420.0,0.00019999,2]
[362398187,1748251844675,-420.0,0.00019999,2]
[362398188,1748251844684,-420.0,0.00019999,2]
[362398189,1748251844694,-461.14295472,0.00019999,2]
[362398190,1748251844705,-420.0,0.00019999,2]
[362398191,1748251844716,-420.0,0.00019999,2]
[362398192,1748251844726,-420.0,0.00019999,2]
[362398193,1748251844742,-420.0,0.00019999,2]
[362398194,1748251844752,-420.0,0.00019999,2]
[362398195,1748251844761,-497.18,0.00019999,2]
[362398196,1748251844771,-420.0,0.00019999,2]
[362398197,1748251844781,-420.0,0.00019999,2]
[362398198,1748251844791,-420.0,0.00019999,2]
[362398199,1748251844801,-565.87,0.00019999,2]
[362398200,1748251844810,-420.0,0.00019999,2]
[362398201,1748251844820,-420.0,0.00019999,2]
[362398202,1748251844830,-420.0,0.00019999,2]
[362398203,1748251844840,-420.0,0.00019999,2]
[362398204,1748251844851,-499.7,0.00019999,2]
[362398205,1748251844862,-420.0,0.00019999,2]
[362398206,1748251844871,-420.0,0.00019999,2]
[362398207,1748251844882,-212.54,0.00019999,2]
[362398208,1748251844891,-304.08213614,0.00019999,2]
[362398209,1748251844900,-420.0,0.00019999,2]
[362398210,1748251844911,-420.0,0.00019999,2]
[362398211,1748251844921,-477.91,0.00019999,2]
[362398212,1748251844930,-420.0,0.00019999,2]
[362398213,1748251844940,-420.0,0.00019999,2]
[362398214,1748251844951,-420.0,0.00019999,2]
[362398215,1748251844960,-286.77446052,0.00019999,2]
[362398216,1748251844970,-420.0,0.00019999,2]
[362398217,1748251844980,-442.81,0.00019999,2]
[362398218,1748251844989,-500.35,0.00019999,2]
[362398219,1748251844999,-420.0,0.00019999,2]
[362398220,1748251845009,-420.0,0.00019999,2]
[362398221,1748251845019,-420.0,0.00019999,2]
[362398222,1748251845028,-420.0,0.00019999,2]
[362398223,1748251845038,-286.98,0.00019999,2]
[362398224,1748251845047,-200.26,0.00019999,2]
[362398225,1748251845057,-420.0,0.00019999,2]
[362398226,1748251845067,-420.0,0.00019999,2]
[362398227,1748251845076,-420.0,0.00019999,2]
[362398228,1748251845086,-420.0,0.00019999,2]
[362398229,1748251845095,-420.0,0.00019999,2]
[362398230,1748251845105,-441.57861787,0.00019999,2]
[362398231,1748251845115,-420.0,0.00019999,2]
[362398232,1748251845125,-420.0,0.00019999,2]
[362398233,1748251845134,-312.54,0.00019999,2]
[362398234,1748251845143,-420.0,0.00019999,2]
[362398235,1748251845153,-239.29,0.00019999,2]
[362398236,1748251845163,-420.0,0.00019999,2]
[362398237,1748251845173,-484.98,0.00019999,2]
[362398238,1748251845182,-420.0,0.00019999,2]
[362398239,1748251845245,-460.72516754,0.00019999,2]
[362398240,1748251845255,-186.379405,0.00019999,2]
[362398241,1748251845265,-420.0,0.00019999,2]
[362398242,1748251845275,-420.0,0.00019999,2]
[362398243,1748251845284,-420.0,0.00019999,2]
[362398244,1748251845293,-244.19,0.00019999,2]
[362398245,1748251845303,-420.0,0.00019999,2]
[362398246,1748251845313,-420.0,0.00019999,2]
[362398247,1748251845322,-420.0,0.00019999,2]
[362398248,1748251845331,-385.32,0.00019999,2]
[362398249,1748251845341,-420.0,0.00019999,2]
[362398250,1748251845350,-420.0,0.00019999,2]
[362398251,1748251845359,-420.0,0.00019999,2]
[362398252,1748251845369,-420.0,0.00019999,2]
[362398253,1748251845378,-420.0,0.00019999,2]
[362398254,1748251845387,-401.01,0.00019999,2]
[362398255,1748251845396,-161.289869,0.00019999,2]
[362398256,1748251845405,-161.289869,0.00019999,2]
[362398257,1748251845414,-161.289869,0.00019999,2]
[362398258,1748251845424,-420.0,0.00019999,2]
[362398259,1748251845433,-420.0,0.00019999,2]
[362398260,1748251845442,-161.289869,0.00019999,2]
[362398261,1748251845451,-426.13,0.00019999,2]
[362398262,1748251845460,-420.0,0.00019999,2]
[362398263,1748251845469,-161.289869,0.00019999,2]
[362398264,1748251845479,-420.0,0.00019999,2]
[362398265,1748251845488,-420.0,0.00019999,2]
[362398266,1748251845497,-161.289869,0.00019999,2]
[362398267,1748251845507,-420.0,0.00019999,2]
[362398268,1748251845516,-161.289869,0.00019999,2]
[362398269,1748251845526,-420.0,0.00019999,2]
[362398270,1748251845535,-161.289869,0.00019999,2]
[362398271,1748251845545,-214.09,0.00019999,2]
[362398272,1748251845556,-561.23,0.00019999,2]
[362398273,1748251845565,-420.0,0.00019999,2]
[362398274,1748251845574,-420.0,0.00019999,2]
[362398275,1748251845584,-401.02,0.00019999,2]
[362398276,1748251845593,-420.0,0.00019999,2]
[362398277,1748251845602,-164.79,0.00019999,2]
[362398278,1748251845612,-154.611546,0.00019999,2]
[362398279,1748251845622,-420.0,0.00019999,2]
[362398280,1748251845631,-420.0,0.00019999,2]
[362398281,1748251845642,-518.87,0.00019999,2]
[362398282,1748251845653,-287.23821819,0.00019999,2]
[362398283,1748251845664,-203.42,0.00019999,2]
[362398284,1748251845675,-151.433267,0.00019999,2]
[362398285,1748251845685,-151.433267,0.00019999,2]
[362398286,1748251845695,-420.0,0.00019999,2]
[362398287,1748251845707,-411.05,0.00019999,2]
[362398288,1748251845716,-420.0,0.00019999,2]
[362398289,1748251845726,-420.0,0.00019999,2]
[362398290,1748251845735,-420.0,0.00019999,2]
[362398291,1748251845746,-420.0,0.00019999,2]
[362398292,1748251845756,-420.0,0.00019999,2]
[362398293,1748251845766,-420.0,0.00019999,2]
[362398294,1748251845776,-278.23,0.00019999,2]
[362398295,1748251845786,-420.0,0.00019999,2]
[362398296,1748251845795,-420.0,0.00019999,2]
[362398297,1748251845806,-420.0,0.00019999,2]
[362398298,1748251845816,-332.98,0.00019999,2]
[362398299,1748251845826,-420.0,0.00019999,2]
[362398300,1748251845835,-420.0,0.00019999,2]
[362398301,1748251845844,-433.76,0.00019999,2]
[362398302,1748251845855,-420.0,0.00019999,2]
[362398303,1748251845865,-525.89862408,0.00019999,2]
[362398304,1748251845875,-420.0,0.00019999,2]
[362398305,1748251845884,-420.0,0.00019999,2]
[362398306,1748251845894,-420.0,0.00019999,2]
[362398307,1748251845905,-420.0,0.00019999,2]
[362398308,1748251845914,-420.0,0.00019999,2]
[362398309,1748251845924,-420.0,0.00019999,2]
[362398310,1748251845934,-307.13,0.00019999,2]
[362398311,1748251845944,-500.0,0.00019999,2]
[362398312,1748251845954,-500.0,0.00019999,2]
[362398313,1748251845964,-500.0,0.00019999,2]
[362398314,1748251845973,-253.87486183,0.00019999,2]
[362398317,1748251846210,-417.89039236,0.00019995,2]
[362398318,1748251846220,-246.12513817,0.00019999,2]
[362398319,1748251846229,-500.0,0.00019999,2]
[362398320,1748251846240,-500.0,0.00019999,2]
[362398321,1748251846250,-500.0,0.00019999,2]
[362398322,1748251846260,-500.0,0.00019999,2]
[362398323,1748251846270,-500.0,0.00019999,2]
[362398324,1748251846280,-497.55986045,0.00019999,2]
[362398325,1748251846291,-2.44013955,0.00019999,2]
[362398326,1748251846301,-476.62,0.00019999,2]
[362398327,1748251846310,-186.379404,0.00019999,2]
[362398328,1748251846320,-420.0,0.00019999,2]
[362398329,1748251846331,-394.85,0.00019999,2]
[362398330,1748251846341,-423.00664313,0.00019999,2]
[362398331,1748251846351,-505.62727006,0.00019999,2]
[362398332,1748251846362,-420.0,0.00019999,2]
[362398333,1748251846371,-420.0,0.00019999,2]
[362398334,1748251846381,-420.0,0.00019999,2]
[362398335,1748251846390,-508.68927384,0.00019999,2]
[362398336,1748251846399,-220.12,0.00019999,2]
[362398337,1748251846409,-423.45313499,0.00019999,2]
[362398338,1748251846418,-420.0,0.00019999,2]
[362398339,1748251846428,-12945.88612329,0.00019999,2]
[362398340,1748251846439,-5582.9144837,0.00019999,2]
[362398341,1748251846547,-35.8185794,0.00019999,2]
[362398342,1748251846558,-1706.62771532,0.00019999,2]
[362398343,1748251846568,-423.72657027,0.00019999,2]
[362398344,1748251846577,-420.0,0.00019999,2]
[362398345,1748251846586,-13.64571441,0.00019999,2]
[362398346,1748251846597,-406.35428559,0.00019999,2]
[362398347,1748251846606,-104.73037507,0.00019999,2]
[362398348,1748251846618,-315.26962493,0.00019999,2]
[362398349,1748251846627,-472.79521673,0.00019999,2]
[362398350,1748251846637,-420.88258444,0.00019999,2]
[362398351,1748251846647,-420.0,0.00019999,2]
[362398352,1748251846656,-420.0,0.00019999,2]
[362398353,1748251846668,-420.0,0.00019999,2]
[362398354,1748251846677,-420.0,0.00019999,2]
[362398355,1748251846687,-340.56,0.00019999,2]
[362398356,1748251846697,-420.0,0.00019999,2]
[362398357,1748251846707,-420.0,0.00019999,2]
[362398358,1748251846717,-420.0,0.00019999,2]
[362398359,1748251846727,-420.0,0.00019999,2]
[362398360,1748251846736,-420.0,0.00019999,2]
[362398361,1748251846746,-420.0,0.00019999,2]
[362398362,1748251846758,-426.28,0.00019999,2]
[362398363,1748251846767,-424.9326303,0.00019999,2]
[362398364,1748251846776,-155.9,0.00019999,2]
[362398365,1748251846785,-414.46501177,0.00019999,2]
[362398366,1748251846796,-420.0,0.00019999,2]
[362398367,1748251846805,-420.0,0.00019999,2]
[362398368,1748251846815,-294.26339192,0.00019999,2]
[362398369,1748251846824,-420.0,0.00019999,2]
[362398370,1748251846833,-420.0,0.00019999,2]
[362398371,1748251846842,-420.0,0.00019999,2]
[362398373,1748251846852,-420.0,0.00019999,2]
[362398375,1748251846861,-420.0,0.00019999,2]
[362398377,1748251846870,-420.0,0.00019999,2]
[362398379,1748251846879,-420.0,0.00019999,2]
[362398381,1748251846888,-420.0,0.00019999,2]
[362398383,1748251846897,-239.24,0.00019999,2]
[362398384,1748251846906,-422.6144092,0.00019999,2]
[362398385,1748251846916,-425.17418824,0.00019999,2]
[362398386,1748251846925,-434.96876333,0.00019999,2]
[362398387,1748251846935,-425.6976159,0.00019999,2]
[362398388,1748251846944,-423.29332349,0.00019999,2]
[362398389,1748251846954,-420.0,0.00019999,2]
[362398390,1748251846964,-420.0,0.00019999,2]
[362398391,1748251846974,-420.0,0.00019999,2]
[362398392,1748251846983,-504.17,0.00019999,2]
[362398393,1748251846992,-538.16478457,0.00019999,2]
[362398394,1748251847002,-420.0,0.00019999,2]
[362398395,1748251847011,-424.27382841,0.00019999,2]
[362398396,1748251847021,-428.23,0.00019999,2]
[362398397,1748251847030,-418.52,0.00019999,2]
[362398398,1748251847039,-420.0,0.00019999,2]
[362398399,1748251847048,-426.67261884,0.00019999,2]
[362398400,1748251847058,-420.0,0.00019999,2]
[362398401,1748251847067,-420.0,0.00019999,2]
[362398402,1748251847076,-297.07,0.00019999,2]
[362398403,1748251847085,-420.0,0.00019999,2]
[362398404,1748251847095,-511.03,0.00019999,2]
[362398405,1748251847104,-422.8685605,0.00019999,2]
[362398406,1748251847114,-426.03036747,0.00019999,2]
[362398407,1748251847124,-507.4,0.00019999,2]
[362398408,1748251847133,-420.0,0.00019999,2]
[362398409,1748251847143,-381.5471593,0.00019999,2]
[362398410,1748251847153,-420.0,0.00019999,2]
[362398411,1748251847163,-420.0,0.00019999,2]
[362398412,1748251847172,-548.14855508,0.00019999,2]
[362398413,1748251847182,-420.0,0.00019999,2]
[362398414,1748251847191,-420.0,0.00019999,2]
[362398415,1748251847201,-420.0,0.00019999,2]
[362398416,1748251847210,-420.0,0.00019999,2]
[362398417,1748251847220,-420.0,0.00019999,2]
[362398418,1748251847230,-420.0,0.00019999,2]
[362398419,1748251847239,-420.0,0.00019999,2]
[362398420,1748251847249,-503.63703978,0.00019999,2]
[362398421,1748251847260,-420.0,0.00019999,2]
[362398422,1748251847269,-420.0,0.00019999,2]
[362398423,1748251847278,-420.0,0.00019999,2]
[362398424,1748251847288,-421.2854905,0.00019999,2]
[362398425,1748251847297,-216.5,0.00019999,2]
[362398426,1748251847306,-420.0,0.00019999,2]
[362398427,1748251847316,-420.0,0.00019999,2]
[362398428,1748251847326,-420.0,0.00019999,2]
[362398429,1748251847335,-420.0,0.00019999,2]
[362398430,1748251847345,-424.02000413,0.00019999,2]
[362398431,1748251847354,-464.42,0.00019999,2]
[362398432,1748251847364,-464.42,0.00019999,2]
[362398433,1748251847373,-464.42,0.00019999,2]
[362398434,1748251847383,-464.42,0.00019999,2]
[362398435,1748251847392,-464.42,0.00019999,2]
[362398436,1748251847401,-464.42,0.00019999,2]
[362398437,1748251847412,-464.42,0.00019999,2]
[362398438,1748251847422,-420.0,0.00019999,2]
[362398439,1748251847432,-464.42,0.00019999,2]
[362398440,1748251847442,-464.42,0.00019999,2]
[362398441,1748251847451,-464.42,0.00019999,2]
[362398442,1748251847460,-464.42,0.00019999,2]
[362398443,1748251847470,-464.42,0.00019999,2]
[362398444,1748251847481,-464.42,0.00019999,2]
[362398445,1748251847491,-464.42,0.00019999,2]
[362398446,1748251847501,-464.42,0.00019999,2]
[362398447,1748251847511,-464.42,0.00019999,2]
[362398448,1748251847521,-464.42,0.00019999,2]
[362398449,1748251847533,-464.42,0.00019999,2]
[362398450,1748251847544,-464.42,0.00019999,2]
[362398451,1748251847554,-464.42,0.00019999,2]
[362398452,1748251847568,-464.42,0.00019999,2]
[362398453,1748251847578,-420.0,0.00019999,2]
[362398454,1748251847589,-464.42,0.00019999,2]
[362398455,1748251847600,-268.92782452,0.00019999,2]
[362398456,1748251847611,-464.58,0.00019999,2]
[362398457,1748251847622,-420.0,0.00019999,2]
[362398458,1748251847634,-371.16602188,0.00019999,2]
[362398459,1748251847644,-420.0,0.00019999,2]
[362398460,1748251847655,-420.0,0.00019999,2]
[362398461,1748251847666,-420.0,0.00019999,2]
[362398462,1748251847675,-420.0,0.00019999,2]
[362398463,1748251847685,-420.0,0.00019999,2]
[362398464,1748251847695,-290.51892587,0.00019999,2]
[362398465,1748251847711,-129.48107413,0.00019999,2]
[362398466,1748251847720,-414.08179442,0.00019999,2]
[362398467,1748251847732,-5.91820558,0.00019999,2]
[362398468,1748251847744,-361.11179443,0.00019999,2]
[362398469,1748251847757,-58.88820557,0.00019999,2]
[362398470,1748251847767,-412.42,0.00019999,2]
[362398471,1748251847777,-327.21802641,0.00019999,2]
[362398472,1748251847789,-101.75315944,0.00019999,2]
[362398473,1748251847798,-162.20432916,0.00019999,2]
[362398474,1748251847813,-259.81306367,0.00019999,2]
[362398475,1748251847822,-50.13532702,0.00019999,2]
[362398476,1748251847964,-426.72245716,0.00019994,2]
[362398477,1748251847974,-420.0,0.00019995,2]
[362398478,1748251847984,-420.0,0.00019995,2]
[362398479,1748251847995,-369.86467298,0.00019999,2]
[362398480,1748251848005,-420.0,0.00019999,2]
[362398481,1748251848015,-420.0,0.00019999,2]
[362398482,1748251848024,-188.96299102,0.00019999,2]
[362398483,1748251848034,-422.81096159,0.00019999,2]
[362398484,1748251848045,-420.0,0.00019999,2]
[362398485,1748251848055,-260.45256433,0.00019999,2]
[362398486,1748251848065,-492.96984203,0.00019999,2]
[362398487,1748251848074,-420.0,0.00019999,2]
[362398488,1748251848084,-231.49,0.00019999,2]
[362398489,1748251848094,-420.0,0.00019999,2]
[362398490,1748251848103,-420.0,0.00019999,2]
[362398491,1748251848113,-420.0,0.00019999,2]
[362398492,1748251848123,-432.21206216,0.00019999,2]
[362398493,1748251848133,-424.07104825,0.00019999,2]
[362398494,1748251848143,-421.38692055,0.00019999,2]
[362398495,1748251848152,-420.0,0.00019999,2]
[362398496,1748251848162,-167.41,0.00019999,2]
[362398497,1748251848172,-420.98665743,0.00019999,2]
[362398498,1748251848181,-420.0,0.00019999,2]
[362398499,1748251848190,-420.0,0.00019999,2]
[362398500,1748251848200,-420.0,0.00019999,2]
[362398501,1748251848210,-367.49791759,0.00019999,2]
[362398502,1748251848219,-420.0,0.00019999,2]
[362398503,1748251848229,-318.19,0.00019999,2]
[362398504,1748251848239,-420.0,0.00019999,2]
[362398505,1748251848249,-420.0,0.00019999,2]
[362398506,1748251848260,-458.67,0.00019999,2]
[362398507,1748251848270,-420.0,0.00019999,2]
[362398508,1748251848280,-422.69906134,0.00019999,2]
[362398509,1748251848289,-420.0,0.00019999,2]